bitfinex/quotes_BTCUSD_20250910
["timestamp","ask_amount","ask_price","bid_price","bid_amount"]
[1757534594962,0.95056582,113640.0,113630.0,0.0001]
[1757534597211,0.80208582,113640.0,113630.0,0.0001]
[1757534597422,0.95056582,113640.0,113630.0,0.0001]
[1757534598470,0.56010322,113640.0,113630.0,0.0001]
[1757534598703,0.95056582,113640.0,113630.0,0.0001]
[1757534601479,0.95052582,113640.0,113630.0,0.0001]
[1757534604799,0.80208582,113640.0,113630.0,0.0001]
[1757534605011,0.86299464,113640.0,113630.0,0.0001]
[1757534610192,0.83657103,113640.0,113630.0,0.0001]
[1757534613298,0.44610843,113640.0,113630.0,0.0001]
[1757534613527,0.83657103,113640.0,113630.0,0.0001]
[1757534613991,0.90336072,113640.0,113630.0,0.0001]
[1757534614422,0.9908919,113640.0,113630.0,0.0001]
[1757534615541,0.8424519,113640.0,113630.0,0.0001]
[1757534615763,0.90336072,113640.0,113630.0,0.0001]
[1757534618239,0.75492072,113640.0,113630.0,0.0001]
[1757534618455,0.90336072,113640.0,113630.0,0.0001]
[1757534623119,0.83657103,113640.0,113630.0,0.0001]
[1757534623785,0.83653103,113640.0,113630.0,0.0001]
[1757534624827,0.44606843,113640.0,113630.0,0.0001]
[1757534625036,0.83653103,113640.0,113630.0,0.0001]
[1757534625372,0.12167407,113640.0,113630.0,0.17610985]
[1757534625576,0.09266407,113640.0,113630.0,0.21662323]
[1757534626365,0.09266407,113640.0,113630.0,0.24303892]
[1757534626613,0.09066407,113640.0,113630.0,0.24303892]
[1757534626814,0.08866407,113640.0,113630.0,0.18140985]
[1757534627181,0.09066407,113640.0,113630.0,0.18140985]
[1757534627616,0.09066407,113640.0,113630.0,0.32980985]
[1757534628542,0.09066407,113640.0,113630.0,0.18140985]
[1757534628756,0.09066407,113640.0,113630.0,0.32980985]
[1757534629706,0.09066407,113640.0,113630.0,0.32976985]
[1757534631091,0.09591407,113640.0,113630.0,0.17820985]
[1757534631303,0.09066407,113640.0,113630.0,0.32656985]
[1757534631512,0.09066407,113640.0,113630.0,0.32976985]
[1757534632911,0.09807416,113640.0,113630.0,0.32656985]
[1757534633332,0.09483416,113640.0,113630.0,0.17820985]
[1757534633536,0.09483416,113640.0,113630.0,0.32656985]
[1757534634411,0.09282416,113640.0,113630.0,0.32656985]
[1757534635303,0.09492416,113640.0,113630.0,0.17820985]
[1757534635535,0.12145416,113640.0,113630.0,0.17610985]
[1757534635760,0.31668546,113640.0,113630.0,0.17610985]
[1757534635966,0.31452537,113640.0,113630.0,0.17610985]
[1757534637049,0.29114537,113640.0,113630.0,0.17813985]
[1757534640597,0.09276407,113640.0,113630.0,0.17813985]
[1757534640851,0.09282416,113640.0,113630.0,0.17813985]
[1757534641620,0.09492416,113640.0,113630.0,0.17813985]
[1757534641838,0.09807416,113640.0,113630.0,0.17813985]
[1757534642666,0.09807416,113640.0,113630.0,0.17610985]
[1757534642667,0.12145416,113640.0,113630.0,0.17610985]
[1757534643144,0.31668546,113640.0,113630.0,0.17610985]
[1757534643348,0.31452537,113640.0,113630.0,0.17610985]
[1757534645138,0.11929407,113640.0,113630.0,0.17610985]
[1757534645361,0.12145416,113640.0,113630.0,0.17610985]
[1757534646701,0.12145416,113640.0,113630.0,0.32442985]
[1757534648452,0.09807416,113640.0,113630.0,0.32645985]
[1757534648657,0.09591407,113640.0,113630.0,0.32645985]
[1757534648859,0.09807416,113640.0,113630.0,0.32645985]
[1757534651766,0.09807416,113640.0,113630.0,0.32442985]
[1757534652825,0.09807416,113640.0,113630.0,0.32645985]
[1757534659385,0.09807416,113640.0,113630.0,0.32641985]
[1757534660343,0.09807416,113640.0,113630.0,0.32438985]
[1757534660734,0.09807416,113640.0,113630.0,0.17610985]
[1757534660936,0.12145416,113640.0,113630.0,0.32438985]
[1757534663071,0.12145416,113640.0,113630.0,0.32641985]
[1757534664433,0.12145416,113640.0,113630.0,0.32438985]
[1757534664631,0.09807416,113640.0,113630.0,0.32438985]
[1757534664845,0.09807416,113640.0,113630.0,0.32654985]
[1757534668056,0.09807416,113640.0,113630.0,0.32438985]
[1757534668278,0.09807416,113640.0,113630.0,0.32654985]
[1757534670440,0.09492416,113640.0,113630.0,0.32654985]
[1757534672323,0.09282416,113640.0,113630.0,0.32654985]
[1757534673704,0.09282416,113640.0,113630.0,0.17826985]
[1757534673911,0.09794416,113640.0,113630.0,0.32646985]
[1757534676807,0.09485416,113640.0,113630.0,0.32646985]
[1757534679689,0.09794416,113640.0,113630.0,0.32430985]
[1757534681848,0.09794416,113640.0,113630.0,0.32646985]
[1757534684069,0.09485416,113640.0,113630.0,0.32646985]
[1757534685225,0.09794416,113640.0,113630.0,0.32646985]
[1757534686374,0.15327492,113640.0,113630.0,0.32646985]
[1757534688517,0.27393852,113640.0,113630.0,0.17610985]
[1757534688723,0.55641963,113640.0,113630.0,0.17610985]
[1757534689137,0.42631903,113640.0,113630.0,0.17610985]
[1757534695217,0.29621843,113640.0,113630.0,0.17610985]
[1757534695489,0.42631903,113640.0,113630.0,0.17610985]
[1757534699265,0.29621843,113640.0,113630.0,0.17610985]
[1757534699492,0.42631903,113640.0,113630.0,0.17610985]
[1757534701111,0.29621843,113640.0,113630.0,0.0001]
[1757534701344,0.29621843,113640.0,113630.0,0.17610985]
[1757534702707,0.12022407,113640.0,113630.0,0.17610985]
[1757534702970,0.29837852,113640.0,113630.0,0.17610985]
[1757534703200,0.29621843,113640.0,113630.0,0.17610985]
[1757534703732,0.44433843,113640.0,113630.0,0.17610985]
[1757534705759,0.51940027,113640.0,113630.0,0.17610985]
[1757534708370,0.64950087,113640.0,113630.0,0.17610985]
[1757534708788,0.57443903,113640.0,113630.0,0.17610985]
[1757534709196,0.44433843,113640.0,113630.0,0.17610985]
[1757534710543,0.63950628,113640.0,113630.0,0.17610985]
[1757534710960,0.63946628,113640.0,113630.0,0.17610985]
[1757534711530,0.44429843,113640.0,113630.0,0.17610985]
[1757534711797,0.70161406,113640.0,113630.0,0.0001]
[1757534712173,0.50644621,113640.0,113630.0,0.0001]
[1757534712375,0.70161406,113640.0,113630.0,0.0001]
[1757534712900,0.89678191,113640.0,113630.0,0.0001]
[1757534720951,0.92320549,113640.0,113630.0,0.0001]
[1757534721362,0.17603918,113620.0,113600.0,0.47111168]
[1757534721581,0.08752352,113610.0,113600.0,0.49753526]
[1757534721778,0.08752352,113610.0,113600.0,0.28390526]
[1757534721984,0.08752352,113610.0,113600.0,0.29282363]
[1757534722399,0.26356436,113610.0,113600.0,0.29282363]
[1757534722661,0.08752352,113610.0,113600.0,0.22231109]
[1757534723012,0.08752352,113610.0,113600.0,0.22431109]
[1757534723116,0.26356436,113610.0,113600.0,0.22431109]
[1757534723341,0.08752352,113610.0,113600.0,0.22331109]
[1757534723953,0.08752352,113610.0,113600.0,0.22431109]
[1757534724726,0.26356436,113610.0,113600.0,0.22431109]
[1757534725061,0.26561436,113610.0,113600.0,0.22431109]
[1757534725266,0.3441945,113610.0,113600.0,0.22431109]
[1757534725568,0.26561436,113610.0,113600.0,0.22431109]
[1757534725789,0.26871436,113610.0,113600.0,0.22431109]
[1757534726459,0.26871436,113610.0,113600.0,0.22331109]
[1757534726738,0.26871436,113610.0,113600.0,0.22231109]
[1757534726914,0.26871436,113610.0,113600.0,0.22331109]
[1757534727300,0.26871436,113610.0,113600.0,0.22231109]
[1757534728900,0.26561436,113610.0,113600.0,0.22231109]
[1757534729288,0.26356436,113610.0,113600.0,0.22231109]
[1757534729719,0.26871436,113610.0,113600.0,0.37035109]
[1757534730460,0.26561436,113610.0,113600.0,0.37035109]
[1757534732044,0.26871436,113610.0,113600.0,0.37035109]
[1757534732519,0.08752352,113610.0,113600.0,0.37358109]
[1757534737028,0.26356436,113610.0,113600.0,0.37358109]
[1757534737536,0.26356436,113610.0,113600.0,0.36477828]
[1757534737743,0.26356436,113610.0,113600.0,0.21673828]
[1757534737960,0.26356436,113610.0,113600.0,0.36477828]
[1757534739751,0.08752352,113610.0,113600.0,0.36477828]
[1757534740666,0.17600985,113630.0,113620.0,0.17602534]
[1757534740888,0.26353337,113630.0,113620.0,0.17800534]
[1757534741098,0.26353337,113630.0,113620.0,0.18020565]
[1757534741312,0.26353337,113630.0,113620.0,0.17800534]
[1757534741972,0.26353337,113630.0,113620.0,0.17810534]
[1757534742191,0.26558337,113630.0,113620.0,0.17810534]
[1757534742403,0.26968337,113630.0,113620.0,0.17810534]
[1757534742831,0.27068337,113630.0,113620.0,0.17810534]
[1757534743319,0.46585122,113630.0,113620.0,0.0001]
[1757534743526,0.5533824,113630.0,113620.0,0.0001]
[1757534743739,0.46585122,113630.0,113620.0,0.0001]
[1757534744173,0.46585122,113630.0,113620.0,0.17612534]
[1757534744844,0.46585122,113630.0,113620.0,0.0001]
[1757534745075,0.46585122,113630.0,113620.0,0.00208]
[1757534747046,0.27068337,113630.0,113620.0,0.00208]
[1757534747283,0.46585122,113630.0,113620.0,0.00208]
[1757534748373,0.27068337,113630.0,113620.0,0.00208]
[1757534748558,0.46585122,113630.0,113620.0,0.00208]
[1757534750602,0.61385122,113630.0,113620.0,0.00208]
[1757534751059,0.61385122,113630.0,113620.0,0.0001]
[1757534751502,0.68841553,113630.0,113620.0,0.0001]
[1757534751719,0.61385122,113630.0,113620.0,0.0001]
[1757534756254,0.41868337,113630.0,113620.0,0.17612534]
[1757534756473,0.08952352,113630.0,113620.0,0.17816534]
[1757534756687,0.09168361,113630.0,113620.0,0.18332565]
[1757534756898,0.09168361,113630.0,113620.0,0.18112534]
[1757534758233,0.26769346,113630.0,113620.0,0.18112534]
[1757534758444,0.26553337,113630.0,113620.0,0.18112534]
[1757534758900,0.08952352,113630.0,113620.0,0.18112534]
[1757534759112,0.09168361,113630.0,113620.0,0.18112534]
[1757534760001,0.26769346,113630.0,113620.0,0.18112534]
[1757534760201,0.26553337,113630.0,113620.0,0.18112534]
[1757534760832,0.08952352,113630.0,113620.0,0.18112534]
[1757534761090,0.09168361,113630.0,113620.0,0.18112534]
[1757534761544,0.26769346,113630.0,113620.0,0.18112534]
[1757534761795,0.08952352,113630.0,113620.0,0.18112534]
[1757534762682,0.08952352,113630.0,113620.0,0.20754483]
[1757534766327,0.08952352,113630.0,113620.0,0.35546483]
[1757534766556,0.08952352,113630.0,113620.0,0.20754483]
[1757534766783,0.08952352,113630.0,113620.0,0.35546483]
[1757534768989,0.002,113630.0,113620.0,0.69546483]
[1757534769267,0.002,113630.0,113620.0,0.70669483]
[1757534769895,0.001,113630.0,113620.0,0.70669483]
[1757534770110,0.00014055,113640.0,113630.0,0.51600985]
[1757534770329,0.00014055,113640.0,113630.0,0.59775985]
[1757534770557,0.00014055,113640.0,113630.0,0.59979985]
[1757534770770,0.00028,113660.0,113650.0,0.51587892]
[1757534770993,0.00028,113660.0,113650.0,0.53774283]
[1757534771259,0.00028,113660.0,113650.0,0.70189283]
[1757534771455,0.00028,113660.0,113650.0,0.72830183]
[1757534772355,0.38106581,113720.0,113650.0,0.72830183]
[1757534772356,0.07914766,113750.0,113690.0,0.00879584]
[1757534772604,0.07912761,113780.0,113770.0,0.22579326]
[1757534772605,0.02365,113780.0,113770.0,0.22579326]
[1757534772827,0.00591444,113800.0,113790.0,0.22576236]
[1757534772828,0.00365,113800.0,113790.0,0.22576236]
[1757534773262,0.00096919,113800.0,113790.0,0.22576236]
[1757534773699,0.00096919,113800.0,113790.0,0.24194108]
[1757534774599,0.30204828,113850.0,113790.0,0.24194108]
[1757534774600,0.00424917,113870.0,113840.0,0.17557212]
[1757534774853,0.00012039,113900.0,113890.0,0.51560804]
[1757534775095,0.00012039,113900.0,113890.0,0.72380804]
[1757534775332,0.00026122,113900.0,113890.0,0.22560804]
[1757534775575,0.00551122,113900.0,113890.0,0.0763602]
[1757534775790,0.00551122,113900.0,113890.0,0.20196824]
[1757534776009,0.00551122,113900.0,113890.0,0.25196824]
[1757534776929,0.00026122,113900.0,113890.0,0.25196824]
[1757534777390,0.02970122,113900.0,113890.0,0.0263602]
[1757534777609,0.02970122,113900.0,113890.0,0.0293602]
[1757534777841,0.02970122,113900.0,113890.0,0.0263602]
[1757534778077,0.68740614,113900.0,113890.0,0.0263602]
[1757534778314,0.27530474,113900.0,113890.0,0.001]
[1757534778531,0.43967773,113900.0,113880.0,0.02636168]
[1757534778757,0.08752352,113890.0,113880.0,0.20198512]
[1757534778969,0.08752352,113890.0,113880.0,0.20208512]
[1757534779196,0.26523156,113890.0,113880.0,0.02646168]
[1757534779450,0.08752352,113890.0,113880.0,0.20412514]
[1757534779644,0.24544352,113890.0,113880.0,0.25412514]
[1757534779874,0.42315156,113890.0,113880.0,0.02646168]
[1757534780106,0.50174034,113890.0,113880.0,0.0001]
[1757534780359,0.26523156,113890.0,113880.0,0.0001]
[1757534780583,0.29257156,113890.0,113880.0,0.0001]
[1757534780845,0.27484352,113890.0,113880.0,0.0011]
[1757534781063,0.45045156,113890.0,113880.0,0.0001]
[1757534781278,0.45045156,113890.0,113870.0,0.17563803]
[1757534781518,0.07063,113880.0,113870.0,0.17563803]
[1757534781723,0.18444352,113880.0,113870.0,0.17563803]
[1757534781952,0.17563888,113870.0,113860.0,0.02636435]
[1757534782169,0.27464352,113870.0,113850.0,0.22576756]
[1757534782384,0.08752352,113860.0,113850.0,0.2521344]
[1757534782589,0.08752352,113860.0,113850.0,0.2541744]
[1757534783467,0.06748,113880.0,113870.0,0.17563888]
[1757534783678,0.15710352,113880.0,113870.0,0.17563888]
[1757534783892,0.16025352,113880.0,113870.0,0.17563888]
[1757534784120,0.31462352,113880.0,113870.0,0.17563888]
[1757534784336,0.15710352,113880.0,113870.0,0.17760888]
[1757534784603,0.31458352,113880.0,113870.0,0.17760888]
[1757534784819,0.31454352,113880.0,113870.0,0.17770888]
[1757534785035,0.31450352,113880.0,113870.0,0.17770888]
[1757534785262,0.15710352,113880.0,113870.0,0.17770888]
[1757534785494,0.31766352,113880.0,113870.0,0.17573888]
[1757534785739,0.31762352,113880.0,113870.0,0.17573888]
[1757534785954,0.31446352,113880.0,113870.0,0.17573888]
[1757534787318,0.49008698,113880.0,113870.0,0.17573888]
[1757534787888,0.49008698,113880.0,113870.0,0.0001]
[1757534788513,0.75422576,113880.0,113870.0,0.0001]
[1757534788720,1.11935234,113880.0,113870.0,0.0001]
[1757534789166,0.88284356,113880.0,113870.0,0.0001]
[1757534789376,1.11935234,113880.0,113870.0,0.0001]
[1757534790647,0.88384356,113880.0,113870.0,0.0001]
[1757534790860,1.12035234,113880.0,113870.0,0.0001]
[1757534791470,0.88328356,113880.0,113870.0,0.0001]
[1757534791707,0.72648356,113880.0,113870.0,0.0001]
[1757534791894,1.11979234,113880.0,113870.0,0.0001]
[1757534792161,0.72648356,113880.0,113870.0,0.0001]
[1757534792325,0.88324356,113880.0,113870.0,0.0001]
[1757534792741,0.72648356,113880.0,113870.0,0.0001]
[1757534792957,0.88316356,113880.0,113870.0,0.0001]
[1757534793410,0.85803698,113880.0,113870.0,0.0001]
[1757534793588,0.18573352,113880.0,113870.0,0.17573888]
[1757534793807,0.18573352,113880.0,113870.0,0.17760888]
[1757534793808,0.31264352,113880.0,113870.0,0.17760888]
[1757534794673,0.31475352,113880.0,113870.0,0.17760888]
[1757534795066,0.31475352,113880.0,113870.0,0.17770888]
[1757534795275,0.49353698,113880.0,113870.0,0.0001]
[1757534795497,0.51800698,113880.0,113870.0,0.0001]
[1757534795934,0.75351576,113880.0,113870.0,0.0001]
[1757534796144,0.51700698,113880.0,113870.0,0.0001]
[1757534796355,0.51700698,113880.0,113870.0,0.0011]
[1757534796553,0.51700698,113880.0,113870.0,0.0001]
[1757534796777,0.75351576,113880.0,113870.0,0.0011]
[1757534797001,0.51700698,113880.0,113870.0,0.0011]
[1757534797236,0.75351576,113880.0,113870.0,0.0001]
[1757534797443,0.75451576,113880.0,113870.0,0.0001]
[1757534798337,0.51800698,113880.0,113870.0,0.0001]
[1757534800805,1.09451576,113880.0,113870.0,0.0001]
[1757534801245,0.85800698,113880.0,113870.0,0.0001]
[1757534801447,1.09451576,113880.0,113870.0,0.0001]
[1757534802098,0.85800698,113880.0,113870.0,0.0001]
[1757534802793,0.87437336,113880.0,113870.0,0.0001]
[1757534803265,0.87437336,113880.0,113870.0,0.17573888]
[1757534803266,0.36136698,113880.0,113870.0,0.17573888]
[1757534803490,0.31715352,113880.0,113870.0,0.17573888]
[1757534803712,0.5091562,113880.0,113870.0,0.17573888]
[1757534804158,0.33353274,113880.0,113870.0,0.17573888]
[1757534804377,0.31715352,113880.0,113870.0,0.17573888]
[1757534804592,0.17450475,113880.0,113870.0,0.17770888]
[1757534804812,0.33350475,113880.0,113870.0,0.0501]
[1757534805040,0.53359821,113880.0,113870.0,0.07303151]
[1757534805257,0.53259821,113880.0,113870.0,0.24867039]
[1757534805935,0.53259821,113880.0,113870.0,0.02303151]
[1757534806205,0.53259821,113880.0,113870.0,0.19967039]
[1757534806433,0.17139475,113880.0,113870.0,0.25164039]
[1757534806660,0.32711475,113880.0,113870.0,0.28523573]
[1757534807128,0.31072352,113880.0,113870.0,0.28523573]
[1757534807351,0.32709408,113880.0,113870.0,0.28523573]
[1757534807583,0.32709408,113880.0,113870.0,0.26230422]
[1757534807822,0.50482754,113880.0,113870.0,0.25928422]
[1757534808053,0.33236408,113880.0,113870.0,0.28070011]
[1757534808286,0.32705408,113880.0,113870.0,0.28267011]
[1757534808528,0.32705408,113880.0,113870.0,0.28569011]
[1757534808754,0.50794754,113880.0,113870.0,0.05506123]
[1757534808993,0.50794754,113880.0,113870.0,0.02448589]
[1757534808994,0.53241754,113880.0,113870.0,0.02448589]
[1757534810099,0.77713578,113880.0,113870.0,0.0011]
[1757534810549,1.14226236,113880.0,113870.0,0.0011]
[1757534811018,1.38492967,113880.0,113870.0,0.0011]
[1757534811273,1.43951473,113880.0,113870.0,0.0011]
[1757534811739,0.41214766,113870.0,113860.0,0.0001]
[1757534811953,0.53044973,113870.0,113860.0,0.0001]
[1757534812190,0.56018973,113870.0,113860.0,0.0001]
[1757534812413,0.56028973,113870.0,113860.0,0.0001]
[1757534812957,0.71564973,113870.0,113860.0,0.0001]
[1757534813460,1.10764973,113870.0,113860.0,0.0001]
[1757534813888,1.05764973,113870.0,113860.0,0.0001]
[1757534814102,1.10764973,113870.0,113860.0,0.0001]
[1757534814819,0.41216309,113860.0,113850.0,0.00024083]
[1757534815045,0.17573148,113810.0,113800.0,0.03067534]
[1757534815338,0.61368434,113810.0,113800.0,0.0001]
[1757534815551,0.76883072,113810.0,113800.0,0.0001]
[1757534815768,0.37716194,113810.0,113800.0,0.0001]
[1757534816009,0.76883072,113810.0,113800.0,0.0001]
[1757534816484,0.76883072,113810.0,113800.0,0.0011]
[1757534816485,1.13401745,113810.0,113800.0,0.0011]
[1757534816704,1.13401745,113810.0,113800.0,0.0001]
[1757534817379,0.97893745,113810.0,113800.0,0.0001]
[1757534817607,1.13405745,113810.0,113800.0,0.0001]
[1757534818069,1.13405745,113810.0,113800.0,0.0021]
[1757534818504,1.13405745,113810.0,113800.0,0.0001]
[1757534818722,1.13505745,113810.0,113800.0,0.0001]
[1757534819163,1.11866051,113810.0,113800.0,0.0001]
[1757534819387,1.13502479,113810.0,113800.0,0.0001]
[1757534819830,1.13478479,113810.0,113800.0,0.0001]
[1757534820266,0.97990479,113810.0,113800.0,0.0001]
[1757534820458,1.13474479,113810.0,113800.0,0.0001]
[1757534820681,0.89823601,113810.0,113800.0,0.0001]
[1757534820893,0.97990479,113810.0,113800.0,0.0001]
[1757534821099,0.97890479,113810.0,113800.0,0.0001]
[1757534821310,1.13566479,113810.0,113800.0,0.0001]
[1757534822671,0.98090479,113810.0,113800.0,0.0001]
[1757534822881,1.13570479,113810.0,113800.0,0.0001]
[1757534823106,1.13570479,113810.0,113750.0,0.0001]
[1757534823107,0.17580872,113760.0,113750.0,0.0001]
[1757534823330,0.56732102,113760.0,113750.0,0.0001]
[1757534823543,0.75231102,113760.0,113750.0,0.0001]
[1757534823981,0.75223102,113760.0,113750.0,0.0001]
[1757534824398,0.75223102,113760.0,113750.0,0.0051]
[1757534824607,0.75237107,113760.0,113750.0,0.0001]
[1757534824820,0.59753107,113760.0,113750.0,0.0001]
[1757534825048,0.75241107,113760.0,113750.0,0.0041]
[1757534825316,0.75229107,113760.0,113750.0,0.0001]
[1757534825543,0.75229107,113760.0,113750.0,0.0031]
[1757534826937,0.59753107,113760.0,113750.0,0.0031]
[1757534827165,0.75233107,113760.0,113750.0,0.0031]
[1757534827698,0.59753107,113760.0,113750.0,0.0031]
[1757534827938,0.75217107,113760.0,113750.0,0.0031]
[1757534828422,0.59753107,113760.0,113750.0,0.0031]
[1757534828847,0.75205107,113760.0,113750.0,0.0031]
[1757534829070,0.59753107,113760.0,113750.0,0.0031]
[1757534829309,0.62265765,113760.0,113750.0,0.0031]
[1757534829538,0.77713765,113760.0,113750.0,0.0031]
[1757534829995,0.77713765,113760.0,113750.0,0.006]
[1757534830496,0.36102229,113760.0,113750.0,0.005605]
[1757534830722,0.48736229,113760.0,113750.0,0.007655]
[1757534831372,0.33306229,113760.0,113750.0,0.007655]
[1757534831619,0.49061229,113760.0,113750.0,0.005605]
[1757534832913,0.48746229,113760.0,113750.0,0.007655]
[1757534833685,0.48734229,113760.0,113750.0,0.007655]
[1757534834123,0.48726229,113760.0,113750.0,0.007655]
[1757534835015,0.15524357,113760.0,113750.0,0.23861697]
[1757534835237,0.30936357,113760.0,113750.0,0.23641917]
[1757534835911,0.15524357,113760.0,113750.0,0.23641917]
[1757534836153,0.22184005,113760.0,113750.0,0.23641917]
[1757534836379,0.41970229,113760.0,113750.0,0.057655]
[1757534836619,0.57501988,113760.0,113750.0,0.055605]
[1757534836825,0.59992988,113760.0,113750.0,0.005605]
[1757534837060,0.75209747,113760.0,113750.0,0.005605]
[1757534837283,0.76837812,113760.0,113750.0,0.005605]
[1757534837498,0.46404294,113760.0,113750.0,0.005605]
[1757534837732,1.1335047,113760.0,113750.0,0.005605]
[1757534837951,0.82916952,113760.0,113750.0,0.0029]
[1757534838166,1.1335047,113760.0,113750.0,0.0059]
[1757534838586,1.1335047,113760.0,113750.0,0.0029]
[1757534839043,0.98133711,113760.0,113750.0,0.0029]
[1757534839278,0.80404294,113760.0,113750.0,0.0029]
[1757534839494,0.95621053,113760.0,113750.0,0.0049]
[1757534840872,0.95621053,113760.0,113750.0,0.0029]
[1757534841100,0.95621053,113760.0,113750.0,0.0039]
[1757534841985,1.10837812,113760.0,113750.0,0.0039]
[1757534843524,0.95621053,113760.0,113750.0,0.0039]
[1757534844432,1.1335047,113760.0,113750.0,0.0039]
[1757534845083,1.13965085,113760.0,113750.0,0.0039]
[1757534847938,0.83531567,113760.0,113750.0,0.0039]
[1757534848170,0.98748326,113760.0,113750.0,0.0039]
[1757534849317,1.05255462,113760.0,113750.0,0.0039]
[1757534851499,0.90038703,113760.0,113750.0,0.0039]
[1757534851716,1.05255462,113760.0,113750.0,0.0039]
[1757534853913,1.20472221,113760.0,113750.0,0.0039]
[1757534854849,1.05255462,113760.0,113750.0,0.0039]
[1757534855097,1.20472221,113760.0,113750.0,0.0039]
[1757534856712,0.90038703,113760.0,113750.0,0.0039]
[1757534856951,1.20472221,113760.0,113750.0,0.0039]
[1757534863239,1.20489064,113760.0,113750.0,0.0039]
[1757534863871,0.90055546,113760.0,113750.0,0.0039]
[1757534864111,1.20489064,113760.0,113750.0,0.0039]
[1757534865226,1.05272305,113760.0,113750.0,0.0039]
[1757534865883,1.20489064,113760.0,113750.0,0.0039]
[1757534866097,1.20490017,113760.0,113750.0,0.0039]
[1757534866529,1.22387792,113760.0,113750.0,0.0039]
[1757534869846,1.06975792,113760.0,113750.0,0.0039]
[1757534870066,1.20298017,113760.0,113750.0,0.0039]
[1757534873165,0.74644499,113760.0,113750.0,0.0039]
[1757534873355,1.20282017,113760.0,113750.0,0.0039]
[1757534874537,1.19667402,113760.0,113750.0,0.0039]
[1757534874736,1.04463402,113760.0,113750.0,0.0039]
[1757534874956,0.17583963,113740.0,113730.0,0.16489085]
[1757534875159,0.41524315,113740.0,113730.0,0.16489085]
[1757534875362,0.42033315,113740.0,113730.0,0.16489085]
[1757534876295,0.42033315,113740.0,113730.0,0.16789085]
[1757534881050,0.23926352,113740.0,113730.0,0.22503903]
[1757534881286,0.0001,113740.0,113730.0,0.79141043]
[1757534881489,0.0001,113740.0,113730.0,0.63977043]
[1757534881688,0.0001,113740.0,113730.0,0.72898085]
[1757534881898,0.0001,113740.0,113730.0,0.80701783]
[1757534882107,0.0001,113740.0,113730.0,0.72898085]
[1757534882303,0.0001,113740.0,113730.0,0.79166657]
[1757534882759,0.0001,113740.0,113730.0,0.64002657]
[1757534882965,0.0001,113740.0,113730.0,0.79166657]
[1757534883127,0.15178005,113760.0,113750.0,0.17582417]
[1757534883299,0.23930357,113760.0,113750.0,0.17582417]
[1757534883509,0.23930357,113760.0,113750.0,0.18077417]
[1757534884432,0.23940357,113760.0,113750.0,0.18077417]
[1757534885415,0.23940357,113760.0,113750.0,0.18943684]
[1757534885844,0.23940357,113760.0,113750.0,0.23943684]
[1757534886256,0.08776357,113760.0,113750.0,0.23943684]
[1757534886495,0.23916357,113760.0,113750.0,0.23943684]
[1757534887410,0.23916357,113760.0,113750.0,0.24243684]
[1757534887936,0.08776357,113760.0,113750.0,0.24243684]
[1757534888080,0.23916357,113760.0,113750.0,0.24243684]
[1757534888741,0.23908357,113760.0,113750.0,0.24243684]
[1757534889943,0.08776357,113760.0,113750.0,0.24243684]
[1757534890150,0.23904357,113760.0,113750.0,0.24243684]
[1757534890811,0.08776357,113760.0,113750.0,0.24243684]
[1757534891028,0.23896357,113760.0,113750.0,0.24243684]
[1757534891471,0.23892357,113760.0,113750.0,0.24243684]
[1757534891786,0.08776357,113760.0,113750.0,0.24243684]
[1757534892242,0.23888357,113760.0,113750.0,0.24243684]
[1757534892468,0.08776357,113760.0,113750.0,0.39351684]
[1757534892687,0.00024005,113760.0,113750.0,0.40801684]
[1757534893341,0.00024005,113760.0,113750.0,0.74801684]
[1757534893561,1e-08,113760.0,113750.0,0.81070256]
[1757534893759,0.00032897,113770.0,113750.0,0.81070256]
[1757534893760,0.00042897,113770.0,113760.0,0.51580872]
[1757534893979,0.00042897,113770.0,113760.0,0.58323872]
[1757534894196,0.00042897,113770.0,113760.0,0.72230791]
[1757534894820,0.00032897,113770.0,113760.0,0.72230791]
[1757534895273,0.00032897,113770.0,113760.0,0.57122791]
[1757534895477,0.00032897,113770.0,113760.0,0.72630791]
[1757534897265,0.00032897,113770.0,113760.0,0.72640791]
[1757534898304,0.00032897,113770.0,113760.0,0.72624791]
[1757534900110,0.00032897,113770.0,113760.0,0.74074791]
[1757534901922,0.00032897,113770.0,113760.0,0.74050791]
[1757534902478,1e-08,113770.0,113760.0,0.80798791]
[1757534907364,1e-08,113770.0,113760.0,0.87391617]
[1757534911421,1e-08,113770.0,113760.0,0.87743358]
[1757534912565,1e-08,113770.0,113760.0,0.59334532]
[1757534912776,1e-08,113770.0,113760.0,0.74362532]
[1757534913419,1e-08,113770.0,113760.0,0.59334532]
[1757534913625,1e-08,113770.0,113760.0,0.57884532]
[1757534918419,0.08752353,113770.0,113760.0,0.23884532]
[1757534919560,0.08762353,113770.0,113760.0,0.23884532]
[1757534920663,0.08762353,113770.0,113760.0,0.23874532]
[1757534925987,0.08762353,113770.0,113760.0,0.59324532]
[1757534925988,0.00010001,113770.0,113760.0,0.59324532]
[1757534927510,0.00010001,113770.0,113760.0,0.65593104]
[1757534927735,0.00010001,113770.0,113760.0,0.62107291]
[1757534928152,0.00010001,113770.0,113760.0,0.68375863]
[1757534928779,1e-08,113770.0,113760.0,0.68375863]
[1757534929008,1e-08,113770.0,113760.0,0.67880863]
[1757534929211,1e-08,113770.0,113760.0,0.68415863]
[1757534933923,1e-08,113770.0,113760.0,0.75087128]
[1757534934911,0.12977109,113770.0,113760.0,0.26366291]
[1757534935115,0.22270461,113770.0,113760.0,0.26366291]
[1757534935317,0.39849787,113770.0,113760.0,0.2601455]
[1757534935514,0.39849787,113770.0,113760.0,0.2581055]
[1757534935896,0.39849787,113770.0,113760.0,0.2541055]
[1757534935897,0.26872679,113770.0,113760.0,0.2541055]
[1757534936130,0.29275679,113770.0,113760.0,0.2581055]
[1757534936387,0.42252787,113770.0,113760.0,0.03229678]
[1757534936599,0.42262787,113770.0,113760.0,0.02829678]
[1757534936818,0.42262787,113770.0,113760.0,0.03029678]
[1757534937262,0.42262787,113770.0,113760.0,0.02829678]
[1757534937729,0.55239895,113770.0,113760.0,0.02829678]
[1757534938179,0.42262787,113770.0,113760.0,0.02829678]
[1757534938375,0.89239895,113770.0,113760.0,0.02829678]
[1757534938865,0.89239895,113770.0,113760.0,0.02819678]
[1757534938866,0.91752553,113770.0,113760.0,0.02819678]
[1757534939088,0.91752553,113770.0,113760.0,0.002]
[1757534939089,1.06831892,113770.0,113760.0,0.002]
[1757534939312,0.5409353,113760.0,113750.0,0.0001]
[1757534939543,1.25155355,113760.0,113750.0,0.0001]
[1757534939769,1.25155355,113760.0,113720.0,0.07061254]
[1757534939770,0.17585509,113730.0,113720.0,0.07061254]
[1757534940053,0.61050969,113730.0,113720.0,0.07061254]
[1757534940497,0.63994969,113730.0,113720.0,0.07061254]
[1757534940714,0.15500352,113730.0,113720.0,0.24852309]